Cogmind - Beta 9.6 @@@ ROGUE MODE // 2020.08.12 @ 15:34:35 Player: Plexion Result: Self-destructed Performance ------------- Evolutions (0) 0 Regions Visited (4) 800 Robots Destroyed (25) 125 Value Destroyed (290) 290 Prototype IDs (24) 480 Alien Tech Used (0) 0 Bonus (300) 300 TOTAL SCORE: 1995 Bonus ------- Aligned with FarCom 300 Cogmind --------- Core Integrity 80/250 Matter 187/300 Energy 123/125 System Corruption 1% Temperature Cool (0) Movement Rolling (80) Location -9/Mines Parts ------- > --- POWER (1) -------- Light Ion Engine > --- PROPULSION (2) --- Wheel Wheel > --- UTILITY (2) ------ Lightpack 2.0 > --- WEAPON (2) ------- Rocket Launcher > --- INVENTORY (24) --- Light Ion Engine Wheel Medium Storage Unit Medium Storage Unit Large Storage Unit Large Storage Unit Signal Interpreter Light Armor Plating Hammer Peak State ------------ > --- POWER ------------ Light Ion Engine > --- PROPULSION ------- Wheel Wheel > --- UTILITY ---------- Lightpack 2.0 > --- WEAPON ----------- Rocket Launcher > --- INVENTORY -------- Light Ion Engine Wheel Medium Storage Unit Medium Storage Unit Large Storage Unit Large Storage Unit Signal Interpreter Light Armor Plating Hammer [Rating: 25] Favorites ----------- Power Ion Engine Engine Ion Engine Propulsion Wheel Wheel Wheel Utility Large Storage Unit Storage Large Storage Unit Protection Light Armor Plating Weapon Assault Rifle Energy Gun Medium Laser Ballistic Gun Assault Rifle Launcher Rocket Launcher Impact Weapon Hammer Build | -11 -10 -10 -10 -9 ------- Run | Scr Mat Min Exi Min Slots Evolved . | . . . . . Power . | . . . . . Propulsion . | . . . . . Utility . | . . . . . Weapon . | . . . . . Parts Attached 16 | 6 5 2 2 1 Power 2 | 1 . . . 1 Engine 2 | 1 . . . 1 Core . | . . . . . Reactor . | . . . . . Propulsion 3 | 2 . . 1 . Treads . | . . . . . Leg . | . . . . . Wheel 3 | 2 . . 1 . Hover . | . . . . . Flight . | . . . . . Utility 5 | 1 3 . 1 . Device . | . . . . . Storage 4 | 1 2 . 1 . Processor . | . . . . . Hackware . | . . . . . Protection 1 | . 1 . . . Artifact . | . . . . . Weapon 6 | 2 2 2 . . Energy Gun 1 | . . 1 . . Energy Cannon . | . . . . . Ballistic Gun 3 | 2 1 . . . Ballistic Cannon . | . . . . . Launcher 1 | . . 1 . . Special Weapon . | . . . . . Impact Weapon 1 | . 1 . . . Slashing Weapon . | . . . . . Piercing Weapon . | . . . . . Special Melee Weapon . | . . . . . Unidentified Prototypes . | . . . . . Parts Lost 5 | . . 5 . . Power 1 | . . 1 . . Propulsion 1 | . . 1 . . Utility . | . . . . . Weapon 3 | . . 3 . . Highest Loss Streak 5 | . . 5 . . Average Slot Usage (%) 84 | . 99 92 55 64 Engine 10 | . 14 11 . 7 Wheel 26 | . 28 25 19 28 Storage 18 | . 15 28 21 14 Protection 4 | . 11 . . . Ballistic Gun 16 | . 27 22 . . Launcher 5 | . . 2 14 14 Naked Turns . | . . . . . Heaviest Build 41 | 13 41 41 36 12 Greatest Support 20 | 20 20 20 20 20 Greatest Overweight (x) 3 | 1 2 3 3 . Average Overweight (x) . | . . 2 1 . Largest Inventory Capacity 24 | 6 16 16 24 24 Average Capacity 14 | 5 7 16 19 24 Most Carried 10 | 5 9 10 10 9 Average Carried 7 | 1 6 9 8 9 Final Capacity 24 | 6 16 16 24 24 Final Carried 9 | 5 9 8 9 9 Class Distribution -------------------- 73% | Mutant 26% | Hauler-Mutant Dominant Class ---------------- Mutant | -10/Materials Mutant | -10/Mines Mutant | -10/Exiles Hauler-Mutant | -9/Mines Resources | -11 -10 -10 -10 -9 ----------- Run | Scr Mat Min Exi Min Matter Collected 547 | 269 123 51 . 104 Remotely . | . . . . . Salvage Created 286 | 43 166 41 . 36 Parts 27 | 7 6 6 . 8 Haulers Intercepted . | . . . . . Recyclers Shooed . | . . . . . Parts Field Recycled . | . . . . . Retrieved Matter . | . . . . . Parts Self-Destructed . | . . . . . Prevented . | . . . . . Kills | -11 -10 -10 -10 -9 ------- Run | Scr Mat Min Exi Min Combat Hostiles Destroyed 22 | . 6 6 . 10 Guns 7 | . 6 1 . . AOE 15 | . . 5 . 10 Classes Destroyed 5 | 1 2 2 . . Worker 1 | . . 1 . . Tunneler 2 | 2 . . . . Swarmer 16 | . 3 3 . 10 Grunt 3 | . 3 . . . Assembled 3 | . . 3 . . Best Kill Streak 7 | 2 3 7 . 7 Combat Bots Only 7 | . 3 6 . 7 Max Kills in Single Turn 4 | 1 2 2 . 4 Gunslinging 1 | . 1 . . . Exploded 4 | . . 2 . 4 Melee . | . . . . . Uniques/NPCs Destroyed . | . . . . . Combat | -11 -10 -10 -10 -9 -------- Run | Scr Mat Min Exi Min Damage Taken 827 | . 270 361 . 196 Core 170 | . 54 61 . 55 Absorbed by Shields . | . . . . . Core Remaining (%) 100 | 100 . . . . Volleys Fired 42 | 4 16 16 . 6 Largest 2 | 2 2 2 . 1 Hottest 50 | 40 40 50 . 33 Shots Fired 64 | 8 32 18 . 6 Gun 47 | 8 32 7 . . Cannon . | . . . . . Launcher 17 | . . 11 . 6 Special . | . . . . . Kinetic 46 | 8 32 6 . . Thermal 1 | . . 1 . . Explosive 17 | . . 11 . 6 Electromagnetic . | . . . . . Robot Hit Streak 18 | 2 18 3 . 2 Robot Miss Streak 3 | 2 3 3 . 1 Penetration Max . | . . . . . Secondary Targets 2 | . 2 . . . Max Gunslinging Chain 1 | . 1 . . . Shots Hit Robots 41 | 3 26 9 . 3 Core Hits 34 | 2 11 11 . 10 Critical Hits . | . . . . . Critical Kills . | . . . . . Critical Parts Destroyed . | . . . . . Melee Attacks 16 | . 16 . . . Impact 16 | . 16 . . . Slashing . | . . . . . Piercing . | . . . . . Sneak Attacks . | . . . . . Combat Hostiles . | . . . . . Follow-up Attacks . | . . . . . Damage Inflicted 1598 | 36 298 506 . 758 Guns 396 | 36 298 62 . . Cannons . | . . . . . Explosions 1202 | . . 444 . 758 Melee . | . . . . . Ramming . | . . . . . Kinetic 383 | 36 298 49 . . Thermal 13 | . . 13 . . Explosive 1202 | . . 444 . 758 Electromagnetic . | . . . . . Impact . | . . . . . Slashing . | . . . . . Piercing . | . . . . . Highest Corruption 1 | . 1 1 1 1 Average Corruption 1 | . 1 1 1 1 Corruption Purged . | . . . . . Effects 3 | . . 1 1 1 Message Errors 1 | . . . . 1 Energy Discharges 2 | . . 1 1 . Overload Shots . | . . . . . Overflow Damage 119 | . . 28 . 91 Projectiles . | . . . . . Explosions 119 | . . 28 . 91 Melee . | . . . . . Knockbacks . | . . . . . Impact . | . . . . . Kinetic . | . . . . . Secondary . | . . . . . Self-Inflicted Damage 96 | . . . . 96 Shots 2 | . . . . 2 Rammed . | . . . . . Targets Rammed . | . . . . . Kicked . | . . . . . Crushed . | . . . . . Highest Temperature 35 | . 35 10 . . Average Temperature 16 | . 17 7 . . Received Heat Transfer 117 | . 117 . . . Siege Activations . | . . . . . Robots Corrupted . | . . . . . Combat Hostiles . | . . . . . Parts Fried . | . . . . . Impact Corruptions . | . . . . . Robots Melted . | . . . . . Combat Hostiles . | . . . . . Parts Melted . | . . . . . Heat Transferred 37 | . . 37 . . Parts Sabotaged . | . . . . . Parts Stolen . | . . . . . Parts Stripped . | . . . . . Power Chain Reactions . | . . . . . Missiles Intercepted . | . . . . . Alert | -11 -10 -10 -10 -9 ------- Run | Scr Mat Min Exi Min Peak Influence 245 | 10 146 70 . 245 Average Influence 73 | 3 85 38 . 100 Maximum Alert Level 1 | . . . . 1 Low Security (%) 99 | 100 100 100 . 98 Level 1 . | . . . . 1 Level 2 . | . . . . . Level 3 . | . . . . . Level 4 . | . . . . . Level 5 . | . . . . . High Security . | . . . . . Max Security . | . . . . . Squads Dispatched 1 | . 1 . . . Investigation 1 | . 1 . . . Extermination . | . . . . . Reinforcement . | . . . . . Assault . | . . . . . Garrison . | . . . . . Intercept . | . . . . . Construction Impeded . | . . . . . Haulers Reinforced . | . . . . . Stealth | -11 -10 -10 -10 -9 --------- Run | Scr Mat Min Exi Min Distress Signals . | . . . . . Communications Jammed . | . . . . . Distress Signals . | . . . . . Times Spotted 31 | . 11 10 . 10 Peak Tracking Total 7 | . 3 6 . 7 Tactical Retreats 1 | . . 1 . . Traps | -11 -10 -10 -10 -9 ------- Run | Scr Mat Min Exi Min Traps Triggered 2 | . 2 . . . Indirectly . | . . . . . Trap Hack Attempts . | . . . . . Triggered . | . . . . . Disarmed . | . . . . . Reprogrammed . | . . . . . Reused . | . . . . . Traps Extracted . | . . . . . Installed . | . . . . . Triggered . | . . . . . Machines | -11 -10 -10 -10 -9 ---------- Run | Scr Mat Min Exi Min Machines Disabled . | . . . . . Max in Single Turn . | . . . . . Machines Sabotaged . | . . . . . Garrisons Compromised . | . . . . . Overloaded Fab Kills . | . . . . . Fab Network Shutdowns . | . . . . . Hacking | -11 -10 -10 -10 -9 --------- Run | Scr Mat Min Exi Min Machines Accessed 6 | . 4 . 2 . Terminals 4 | . 4 . . . Fabricators . | . . . . . Repair Stations . | . . . . . Recycling Units . | . . . . . Scanalyzers . | . . . . . Garrison Access . | . . . . . Total Hacks 17 | . 15 . 2 . Successful 13 | . 11 . 2 . Failed 4 | . 4 . . . Catastrophic . | . . . . . Database Lockouts . | . . . . . Manual 13 | . 12 . 1 . Terminals 15 | . 15 . . . Fabricators . | . . . . . Repair Stations . | . . . . . Recycling Units . | . . . . . Scanalyzers . | . . . . . Garrison Access . | . . . . . Terminal Hacks 11 | . 9 . 2 . Record 1 | . . . 1 . Prototype ID Bank 1 | . 1 . . . Branch Access Points 1 | . 1 . . . Locate Traps 2 | . 2 . . . Recall Investigation 1 | . 1 . . . Hauler Manifests 1 | . 1 . . . Zone Layout 3 | . 3 . . . EX-Prototype ID Bank 1 | . . . 1 . Fabricator Hacks . | . . . . . Repair Station Hacks . | . . . . . Recycling Unit Hacks . | . . . . . Scanalyzer . | . . . . . Garrison Access Hacks . | . . . . . Unauthorized Hacks 2 | . 2 . . . Terminals 2 | . 2 . . . Track 1 | . 1 . . . Botnet 1 | . 1 . . . Fabricators . | . . . . . Repair Stations . | . . . . . Recycling Units . | . . . . . Scanalyzers . | . . . . . Garrison Access . | . . . . . Data Cores Recovered . | . . . . . Used . | . . . . . Hacking Detections 4 | . 4 . . . Full Trace Events . | . . . . . Feedback Events . | . . . . . Feedback Blocked . | . . . . . Robot Schematics Acquired . | . . . . . Robots Built . | . . . . . Matter . | . . . . . Time . | . . . . . Total Robot Build Rating . | . . . . . Part Schematics Acquired . | . . . . . Parts Built . | . . . . . Matter . | . . . . . Time . | . . . . . Total Part Build Rating . | . . . . . Parts Repaired . | . . . . . Time . | . . . . . Parts Recycled . | . . . . . Recycled Matter . | . . . . . Retrieved Matter . | . . . . . Retrieved Components . | . . . . . Parts Scanalyzed . | . . . . . Part Schematics Acquired . | . . . . . Parts Damaged . | . . . . . Bothacking | -11 -10 -10 -10 -9 ------------ Run | Scr Mat Min Exi Min Used RIF Installer . | . . . . . Robots Hacked . | . . . . . Non-combat . | . . . . . Combat . | . . . . . Robot Hacks Applied . | . . . . . Relay Couplers Released . | . . . . . Robots Rewired . | . . . . . Allies Hacked . | . . . . . Hacks Repelled . | . . . . . Allies | -11 -10 -10 -10 -9 -------- Run | Scr Mat Min Exi Min Total Allies . | . . . . . Largest Group . | . . . . . Highest-Rated Group . | . . . . . Highest-Rated Ally . | . . . . . Total Orders . | . . . . . Ally Attacks . | . . . . . Total Damage . | . . . . . Kills . | . . . . . Allies Corrupted . | . . . . . Allies Melted . | . . . . . Intel | -11 -10 -10 -10 -9 ------- Run | Scr Mat Min Exi Min Robot Analysis Total . | . . . . . Derelict Logs Recovered 2 | . . 1 . 1 Drone Launches . | . . . . . Drone Recoveries . | . . . . . Exploration | -11 -10 -10 -10 -9 ------------- Run | Scr Mat Min Exi Min Turns Passed 1844 | 83 728 411 223 399 Spaces Moved 1649 | 47 648 365 226 363 Core 12 | 12 . . . . Treads . | . . . . . Legs . | . . . . . Wheels 1637 | 35 648 365 226 363 Hover . | . . . . . Flight . | . . . . . Fastest Speed 50 | 50 80 100 80 80 Average Speed 87 | 84 82 101 94 80 Slowest Speed 110 | 100 100 110 110 80 Overloaded Moves . | . . . . . Propulsion Burnouts . | . . . . . Robots Hopped . | . . . . . Cave-ins Triggered . | . . . . . Exploration Rate (%) 57 | 3 89 59 61 75 Regions Visited 4 Branch Regions 3 Pre-discovered Areas 2 | . . . 1 1 Known Exits Taken 2 | . 1 1 . . Unknown Exits Taken 2 | 1 . . 1 . Scrap Searched 2 | . . 1 . 1 Spaces Dug 12 | . . 12 . . Terrain Destroyed 137 | . . 72 . 65 Melee . | . . . . . Projectile . | . . . . . AOE 137 | . . 72 . 65 Actions | -11 -10 -10 -10 -9 --------- Run | Scr Mat Min Exi Min Total 1954 | 79 787 388 235 465 Wait 212 | 16 96 5 . 95 Move 1645 | 46 647 364 225 363 Hop . | . . . . . Pick Up 17 | 6 4 1 6 . Fast Attach 10 | 6 2 . 1 1 Attach 3 | . . 2 1 . Detach 2 | . 1 . 1 . Swap 3 | . 3 . . . Drop 4 | 1 2 . 1 . Fire 42 | 4 16 16 . 6 Melee 16 | . 16 . . . Ram . | . . . . . Kick . | . . . . . Crush . | . . . . . Escape Stasis . | . . . . . Rewire . | . . . . . Trap . | . . . . . Miscellaneous . | . . . . . Route ------- -11/Scrapyard -10/Materials (discovered 5 exits: [*Mat x3] / *Min x2) -10/Mines (discovered 2 exits: [*Mat] / *Exi) -10/Exiles -9/Mines History --------- Turn | Location | Event 6 | -11/Scrapyard | Discovered new exit (range 15) 84 | -11/Scrapyard | Entered Materials 86 | -10/Materials | Discovered new exit (range 13) 231 | -10/Materials | Identified exit to Mines 267 | -10/Materials | Discovered new exit (range 8) 315 | -10/Materials | Build established: Mutant 425 | -10/Materials | Discovered new exit (range 15) 729 | -10/Materials | Discovered new exit (range 9) 812 | -10/Materials | Entered Mines 823 | -10/Mines | Identified exit to Exiles 832 | -10/Mines | Deemed a non-threat by the Exiles lab entrance 853 | -10/Mines | Met a Derelict bent on vengeance 871 | -10/Mines | Discovered new exit (range 12) 989 | -10/Mines | Received a Rocket Launcher from a helpful Derelict 1106 | -10/Mines | Assembled infested the area 1209 | -10/Mines | Lost 5 parts (1p1n3w) 1223 | -10/Mines | Entered Exiles 1251 | -10/Exiles | Met 8R-AWN 1269 | -10/Exiles | Met EX-HEX 1303 | -10/Exiles | Met EX-BIN 1315 | -10/Exiles | Aligned with FarCom system 1316 | -10/Exiles | Given EX-Vault access code 1341 | -10/Exiles | Opened EX-Vault 1347 | -10/Exiles | Found Lightpack 2.0 1378 | -10/Exiles | Warned to stay clear of 0b10 Research branches 1399 | -10/Exiles | Met EX-DEC 1406 | -10/Exiles | Learned location of Zion (-7) 1440 | -10/Exiles | Discovered new exit (range 10) 1446 | -10/Exiles | Left Exiles lab with Lightpack 2.0 1446 | -10/Exiles | Entered Mines 1549 | -9/Mines | Learned location of Storage (-7) 1617 | -9/Mines | Core integrity fell below 50% 1643 | -9/Mines | Destroyed 7 combat bots 1648 | -9/Mines | Build established: Hauler-Mutant 1720 | -9/Mines | Learned 2 Materials zone layouts 1845 | -9/Mines | Self-destructed Last Messages --------------- 01639_ R-06 Scavenger collects Flight Unit. 01640_ U-05 Engineer builds a Wall. 01640_ U-05 Engineer lays Concrete. 01642_ U-05 Engineer builds a Wall. 01645_ U-05 Engineer lays Concrete. 01649_ U-05 Engineer builds a Wall. 01684_ U-05 Engineer lays Concrete. 01690_ The unstable cave ceiling collapses. 01690_ U-05 Engineer lays Concrete. 01695_ K-01 Serf collects debris. 01720_ Acquired derelict log, extracted data. Data stored: Materials zone layouts (x2). 01841_ C-30 ARC bursts open, deploying its payload. 01841_ S-10 Pest unfolds itself. 01841_ S-10 Pest destroyed. 01843_ The unstable cave ceiling collapses. 01843_ Acquired 7 matter. 01844_ K-01 Serf collects debris. 01844_ Acquired 6 matter. 01845_ Acquired 91 matter. Map ----- +----------------------------------------------------+ | ??????# #?????????????????# #########??????? | | ??????# #??????????????#### ## ######## | | ??????# ### #??????????# ## | | ??????# #??????????# ### | | ??????# #####????????????## # | | ??????# #############????## # ##??? | | ??????# #?????#### """" ##?### | | ??????# #### #???# ### """" #### | | ??????############# #???# ### """" | | ??????????????????# ######??## | | ????????????????### #???????# #### | | ?????????????## ##?????## ## #?## | | ############ ##???## #### ### | | # % #??## ##??# ### | | # ! g l #??# #####???# ### | | ######## ###### ##?## ##???????## ## | | #???????# #?????# #### ##??????????# #? | | #????????# #?????# #??####??????# ##? | | #?????????# #?????# ##### ##?## ###????####?? | | ##???######## #?????# #???####??# ##????????? | | ?????# #???### #??????????# #????????? | | ?????# ########??## ####???????## #????????? | | ?????# #?????????# ######???### #????????? | | ?????# #????????# ####k## #?????## #????????? | | ?????# #???????# #???# ######## #????????? | | ?????# #??????# ????#*@ k #????????? | | ?????# #??????# ?????##%= # ####### #???###### | | ?????# #??????## ??????### # #?????# #???# | | ?????# #???????##?????????#####?????## #???# | | ?????# #????????????????????????????## ##??# | | ?????# #????????????????????????????# #### | | ?????# #??????####??????????????????# | | ?????# #?????## ##????????????????## " | | ?????# ####### #???????????###### #### " | | ?????# #???????????# #??# " | | ?????######### #???????????# #??###### | | ?????????????# #???????????# #???????? | | ?????????????## ##???????????## #???????? | | ??????????????####?????????????#### ##???????? | | ??????????????????????????????????#######????????? | | ?????????????????????????????????????????????????? | | ?????????????????????????????????????????????????? | | | | | | | | | | | | | | | | | +----------------------------------------------------+ Best States ------------- Heat Dissipation 25 Energy Generation 10 Energy Capacity 250 Matter Stores 300 Matter Capacity 300 Sight Range 16 Terrain Scan Density 10 Armor Coverage 150 Evasion (%) 44 Item Schematics ----------------- None Robot Schematics ------------------ None Fabricated ------------ Nothing Alien Tech Used ----------------- None Achievements -------------- None Challenges ------------ None Game ------ Seed TiamatDiametricWell Manual? 0 Play Time 00:12:41 Cumulative 94.3 hours Start 2020.08.12 @ 15:11:46 End 2020.08.12 @ 15:34:35 Sessions 3 Manual Loads 0 Difficulty Rogue Special Mode None Game No. 104 Rogue 17 Adventurer 87 Explorer 0 Win Type - Total 3 Types 2/0/0/1/0/0/0 Lore% 47 Gallery% 62 Achievement% 53 Wizard Run 0 Options --------- ASCII 0 Keyboard 1 Movement Numpad Keybinds 0 Fullscreen 1 Font 18/Smallcaps Map View 76x50 Tactical HUD 1 Map Filters NONE Filters NONE Steam 1 RUN: a4610d42-490c-417e-a33e-804c3090fb25